bitfinex/quotes_SOLUSD_20250416
["timestamp","ask_amount","ask_price","bid_price","bid_amount"]
[1744844426150,82.8,132.16,132.13,7.568228]
[1744844426349,82.8,132.16,132.14,11.24309669]
[1744844426542,15.463,132.2,132.15,11.24309669]
[1744844426731,0.063,132.2,132.19,11.24309669]
[1744844427141,0.063,132.2,132.19,17.61726833]
[1744844432449,0.063,132.2,132.18,7.56541558]
[1744844432632,0.063,132.2,132.19,17.61726833]
[1744844435239,0.063,132.2,132.17,26.0]
[1744844435557,0.063,132.2,132.18,17.61726833]
[1744844439239,0.063,132.2,132.17,17.61726833]
[1744844441064,17.61726833,132.18,132.1,7.7161]
[1744844441252,17.61726833,132.16,132.11,17.61726833]
[1744844441451,100.41726833,132.16,132.11,17.61726833]
[1744844442072,100.41726833,132.16,132.12,17.61726833]
[1744844442365,82.8,132.16,132.13,17.61726833]
[1744844442743,82.8,132.16,132.14,17.61726833]
[1744844445452,82.8,132.16,132.13,43.61726833]
[1744844445652,90.36688106,132.16,132.13,17.61726833]
[1744844450065,82.8,132.15,132.11,43.61726833]
[1744844450249,100.41726833,132.15,132.1,17.68026833]
[1744844450650,82.8,132.15,132.11,17.61726833]
[1744844452271,7.56773119,132.14,132.11,17.61726833]
[1744844454676,82.8,132.15,132.11,17.61726833]
[1744844454677,90.36732633,132.15,132.11,17.61726833]
[1744844454861,90.36732633,132.15,132.1,7.63301586]
[1744844454862,90.36732633,132.15,132.12,17.61726833]
[1744844455173,90.36732633,132.15,132.12,11.28683062]
[1744844458975,101.65415695,132.15,132.1,7.63301586]
[1744844459175,90.36732633,132.15,132.12,11.28683062]
[1744844461375,90.36732633,132.15,132.13,11.28683062]
[1744844461376,82.8,132.15,132.13,11.28683062]
[1744844461564,82.8,132.15,132.14,11.28683062]
[1744844462177,82.8,132.15,132.13,11.28683062]
[1744844463177,82.8,132.15,132.13,18.85511073]
[1744844463358,82.8,132.15,132.14,11.28683062]
[1744844464077,82.8,132.18,132.14,11.28683062]
[1744844464274,82.8,132.18,132.16,11.28683062]
[1744844464777,82.863,132.2,132.17,11.28683062]
[1744844465078,82.863,132.2,132.18,11.28683062]
[1744844465663,82.863,132.2,132.19,11.28683062]
[1744844468186,82.8,132.19,132.12,1.6394]
[1744844468480,94.08683062,132.19,132.14,37.28683062]
[1744844468784,94.08683062,132.19,132.15,11.28683062]
[1744844468981,101.65190575,132.19,132.15,11.28683062]
[1744844470377,101.65190575,132.19,132.14,37.28683062]
[1744844470579,11.28683062,132.18,132.14,11.28683062]
[1744844471177,17.63156554,132.18,132.14,17.63156554]
[1744844471784,107.99664067,132.19,132.14,17.63156554]
[1744844473468,17.63156554,132.17,132.13,17.63156554]
[1744844473802,17.63156554,132.17,132.12,17.63156554]
[1744844473803,100.43156554,132.17,132.12,17.63156554]
[1744844473982,17.63156554,132.16,132.12,17.63156554]
[1744844474382,26.72123412,132.16,132.11,43.63156554]
[1744844474581,26.72123412,132.16,132.11,17.63156554]
[1744844474582,100.43156554,132.15,132.11,17.63156554]
[1744844474782,82.8,132.15,132.11,17.63156554]
[1744844474985,100.43156554,132.15,132.1,0.063]
[1744844475287,100.43156554,132.15,132.11,17.63156554]
[1744844475485,17.63156554,132.13,132.1,0.063]
[1744844475694,100.43156554,132.12,132.1,0.063]
[1744844475866,82.8,132.12,132.1,0.063]
[1744844476887,108.00097387,132.12,132.1,0.063]
[1744844477193,82.8,132.11,132.1,0.063]
[1744844477484,100.43156554,132.11,132.1,0.063]
[1744844477682,19.29632711,132.11,132.1,0.063]
[1744844478867,0.14216157,132.09,132.08,0.063]
[1744844479186,36.56553754,132.09,132.08,0.063]
[1744844479874,17.63156554,132.09,132.08,0.063]
[1744844481094,82.8,132.1,132.08,0.063]
[1744844481474,90.37008548,132.1,132.08,0.063]
[1744844482895,90.37016451,132.1,132.08,0.063]
[1744844483974,84.3929,132.15,132.08,17.69456554]
[1744844484177,84.3929,132.15,132.13,17.63156554]
[1744844484490,84.3929,132.15,132.12,17.63156554]
[1744844484692,91.96038468,132.15,132.11,17.63156554]
[1744844486804,84.3929,132.15,132.12,17.63156554]
[1744844487000,91.96015534,132.15,132.12,17.63156554]
[1744844487890,91.96015534,132.15,132.11,17.63156554]
[1744844488504,109.59172088,132.15,132.1,43.63156554]
[1744844489798,17.63156554,132.12,132.08,0.063]
[1744844490008,100.43156554,132.11,132.08,0.063]
[1744844491100,82.8,132.11,132.08,17.69456554]
[1744844491404,82.8,132.11,132.08,0.063]
[1744844491580,100.43156554,132.11,132.08,0.063]
[1744844491779,82.8,132.11,132.08,17.69456554]
[1744844491981,90.36952263,132.11,132.08,17.69456554]
[1744844492197,90.36952263,132.11,132.08,0.063]
[1744844493189,108.00108817,132.11,132.08,0.063]
[1744844499015,90.36952263,132.11,132.08,0.063]
[1744844499220,82.8,132.11,132.1,17.63156554]
[1744844500314,82.8,132.14,132.1,17.63156554]
[1744844500510,82.8,132.14,132.11,17.63156554]
[1744844500711,82.8,132.14,132.12,17.63156554]
[1744844500899,82.8,132.14,132.13,17.63156554]
[1744844501213,82.8,132.14,132.09,17.63156554]
[1744844501214,82.8,132.14,132.12,17.63156554]
[1744844503415,82.8,132.14,132.11,17.63156554]
[1744844504414,90.36783056,132.14,132.11,17.63156554]
[1744844504618,90.36783056,132.14,132.1,43.63156554]
[1744844505013,90.36783056,132.14,132.1,26.0]
[1744844505192,82.8,132.14,132.11,17.63156554]
[1744844505818,82.8,132.14,132.1,17.63156554]
[1744844506517,90.36797055,132.14,132.11,17.63156554]
[1744844508220,82.8,132.14,132.11,17.63156554]
[1744844509216,90.36783894,132.14,132.11,17.63156554]
[1744844509416,90.36783894,132.14,132.1,17.63156554]
[1744844509599,90.36783894,132.14,132.11,17.63156554]
[1744844510000,90.36783894,132.14,132.1,17.63156554]
[1744844510615,90.36783894,132.14,132.11,17.63156554]
[1744844510813,90.36783894,132.14,132.09,7.57037364]
[1744844511010,90.36783894,132.14,132.1,17.63156554]
[1744844511210,82.8,132.13,132.09,17.63156554]
[1744844511517,82.8,132.13,132.1,17.63156554]
[1744844513123,90.36883556,132.13,132.1,17.63156554]
[1744844514430,90.36883556,132.13,132.08,0.063]
[1744844514724,90.36883556,132.13,132.09,17.63156554]
[1744844515328,90.36883556,132.13,132.08,0.063]
[1744844515529,90.36883556,132.13,132.09,17.63156554]
[1744844517028,108.0004011,132.13,132.08,17.69456554]
[1744844517213,11.29575426,132.11,132.08,0.063]
[1744844517614,7.57002271,132.1,132.08,0.063]
[1744844517829,90.37002271,132.1,132.08,0.063]
[1744844521832,84.3324,132.14,132.09,11.29575426]
[1744844522010,84.3324,132.14,132.13,11.29575426]
[1744844522011,82.8,132.14,132.13,11.29575426]
[1744844522217,7.56668136,132.16,132.12,11.29575426]
[1744844522912,7.56668136,132.16,132.13,11.29575426]
[1744844523106,7.56668136,132.16,132.13,17.63343478]
[1744844526531,7.56668136,132.16,132.1,26.0]
[1744844526742,90.36668136,132.16,132.12,17.63343478]
[1744844528137,82.8,132.16,132.13,17.63343478]
[1744844528544,82.8,132.16,132.11,33.56927634]
[1744844528725,82.8,132.16,132.13,17.63343478]
[1744844529820,90.36663167,132.16,132.13,17.63343478]
[1744844530021,90.36663167,132.16,132.11,33.56927634]
[1744844530326,90.36663167,132.16,132.13,17.63343478]
[1744844533049,90.36662568,132.16,132.13,17.63343478]
[1744844535036,108.00006046,132.16,132.12,17.63343478]
[1744844535236,17.63343478,132.15,132.11,43.63343478]
[1744844535749,108.00006046,132.16,132.11,43.63343478]
[1744844537144,17.63343478,132.14,132.1,17.63343478]
[1744844537350,17.63343478,132.14,132.09,43.63343478]
[1744844538444,7.56830394,132.13,132.09,43.63343478]
[1744844538752,7.56830394,132.13,132.1,43.63343478]
[1744844539643,7.56830394,132.13,132.1,26.0]
[1744844541441,90.36830394,132.13,132.1,26.0]
[1744844542350,108.00173872,132.13,132.09,17.63343478]
[1744844542542,109.60873872,132.13,132.09,17.63343478]
[1744844542943,109.60873872,132.13,132.08,43.69643478]
[1744844543138,109.60873872,132.13,132.08,0.063]
[1744844543139,17.63343478,132.09,132.08,0.063]
[1744844543352,51.00332693,132.09,132.08,0.063]
[1744844543558,69.93729893,132.09,132.08,0.063]
[1744844543856,52.30386415,132.09,132.08,0.063]
[1744844545258,45.97378823,132.09,132.08,0.063]
[1744844545562,91.18722367,132.09,132.08,0.063]
[1744844545863,45.97378823,132.09,132.08,0.063]
[1744844546251,91.18722367,132.09,132.08,0.063]
[1744844546843,45.97378823,132.09,132.08,0.063]
[1744844549742,19.07613357,132.08,132.07,0.063]
[1744844549950,26.14216157,132.07,132.06,1e-08]
[1744844550262,101.73397199,132.06,132.04,0.03]
[1744844550444,45.63733086,132.06,132.04,0.03]
[1744844551582,53.20964647,132.06,132.04,0.03]
[1744844552971,61.39024647,132.06,132.04,0.03]
[1744844557153,0.14216157,132.05,132.04,0.03]
[1744844557456,31.15291561,132.06,132.04,0.03]
[1744844557668,11.44552043,132.05,132.04,0.03]
[1744844558166,19.01840948,132.05,132.04,0.03]
[1744844559364,37.95238148,132.05,132.04,0.03]
[1744844565485,37.95238148,132.05,132.03,1e-08]
[1744844565486,26.64902262,132.05,132.03,1e-08]
[1744844565684,37.95238148,132.05,132.03,1e-08]
[1744844565867,11.44552043,132.04,132.03,1e-08]
[1744844566873,19.01898301,132.04,132.03,1e-08]
[1744844567267,18.87682144,132.04,132.03,1e-08]
[1744844567464,37.95295501,132.04,132.03,1e-08]
[1744844571879,18.933972,132.03,132.02,1e-08]
[1744844572077,30.23733086,132.03,132.02,1e-08]
[1744844573478,30.37949243,132.03,132.02,1e-08]
[1744844573685,83.16696407,132.03,132.02,1e-08]
[1744844574786,0.14216157,132.02,131.99,0.063]
[1744844574996,30.23733086,132.0,131.99,0.063]
[1744844575784,37.81308843,132.0,131.99,0.063]
[1744844577989,19.021278,132.0,131.99,0.063]
[1744844580693,7.57575757,132.0,131.99,0.063]
[1744844581006,22.97535975,132.01,131.99,0.063]
[1744844581183,34.27871861,132.01,131.99,0.063]
[1744844583516,15.4,132.01,131.99,0.063]
[1744844583686,34.27867309,132.01,131.99,0.063]
[1744844588409,18.87867309,132.01,131.99,0.063]
[1744844591611,101.67817379,132.02,131.99,0.063]
[1744844591787,90.37481493,132.02,131.99,0.063]
[1744844591990,82.8,132.02,131.99,11.36635886]
[1744844592185,82.8,132.02,132.01,11.30335886]
[1744844592493,82.8,132.02,131.99,11.36635886]
[1744844592694,82.8,132.02,132.0,11.30335886]
[1744844593505,11.30335886,132.01,131.99,0.063]
[1744844593692,11.30335886,132.0,131.99,0.063]
[1744844594897,18.87911643,132.0,131.99,0.063]
[1744844595811,19.021278,132.0,131.99,0.063]
[1744844596018,19.021278,132.0,131.98,0.03]
[1744844596019,82.94216157,131.99,131.98,0.03]
[1744844596322,113.17949243,131.99,131.98,0.03]
[1744844596501,30.37949243,131.99,131.98,0.03]
[1744844597120,37.95582397,131.99,131.97,0.03]
[1744844597431,0.14216157,131.97,131.95,0.03]
[1744844597603,94.24552043,131.96,131.95,0.03]
[1744844598000,30.37949243,131.96,131.95,0.03]
[1744844599023,37.95754638,131.96,131.95,0.03]
[1744844599416,26.14216157,131.94,131.93,0.03]
[1744844599621,37.44552043,131.94,131.93,0.03]
[1744844600415,11.44552043,131.94,131.93,0.03]
[1744844600620,11.30335886,131.94,131.93,0.03]
[1744844601222,18.88256152,131.94,131.93,0.03]
[1744844602795,7.57920266,131.94,131.93,0.03]
[1744844603000,19.02472309,131.94,131.93,0.03]
[1744844603613,7.72136423,131.94,131.93,0.03]
[1744844603819,19.02472309,131.94,131.93,0.03]
[1744844604418,7.72136423,131.94,131.93,0.03]
[1744844604622,7.57920266,131.94,131.93,0.03]
[1744844605034,20.49211338,131.99,131.93,11.33335886]
[1744844605203,7.57633154,131.99,131.95,11.30335886]
[1744844605904,7.57633154,131.99,131.96,11.30335886]
[1744844606105,7.57594079,132.0,131.97,11.30335886]
[1744844606305,7.57594079,132.0,131.96,11.30335886]
[1744844606606,18.87929965,132.0,131.96,11.30335886]
[1744844607208,26.51255134,132.02,131.97,11.30335886]
[1744844607422,82.8,132.01,131.97,11.30335886]
[1744844609328,90.37574078,132.01,131.97,11.30335886]
[1744844610523,90.37574078,132.01,131.98,11.30335886]
[1744844610906,90.37574078,132.01,131.99,11.30335886]
[1744844610907,82.8,132.01,131.99,11.30335886]
[1744844613329,82.8,132.01,131.98,15.4]
[1744844613330,90.37521565,132.01,131.98,15.4]
[1744844613628,90.37521565,132.01,131.97,11.30335886]
[1744844614233,101.67857451,132.01,131.96,11.30335886]
[1744844615037,101.67857451,132.01,131.97,11.30335886]
[1744844615237,90.37521565,132.01,131.97,11.30335886]
[1744844615440,101.67857451,132.01,131.97,11.30335886]
[1744844615623,101.67857451,132.01,131.96,11.30335886]
[1744844615823,101.67857451,132.01,131.97,11.30335886]
[1744844616453,90.37521565,132.01,131.97,11.30335886]
[1744844616635,101.67857451,132.01,131.97,11.30335886]
[1744844616929,90.37521565,132.01,131.97,11.30335886]
[1744844617622,82.8,132.0,131.97,11.30335886]
[1744844619122,90.37582556,132.0,131.97,11.30335886]
[1744844619345,101.67918442,132.0,131.96,11.30335886]
[1744844619632,101.67918442,132.0,131.95,37.30335886]
[1744844620427,101.67918442,132.0,131.96,11.30335886]
[1744844621413,90.37582556,132.0,131.96,11.30335886]
[1744844623515,90.37641016,131.99,131.96,11.30335886]
[1744844624211,90.37641016,131.99,131.97,11.30335886]
[1744844628037,82.8,131.99,131.97,11.30335886]
[1744844630444,90.37633798,131.99,131.97,11.30335886]
[1744844631243,82.8,131.99,131.97,11.30335886]
[1744844632146,90.3764971,131.99,131.97,11.30335886]
[1744844632439,90.3764971,131.99,131.95,11.30335886]
[1744844632937,90.3764971,131.99,131.96,11.30335886]
[1744844634423,90.3764971,131.99,131.95,11.30335886]
[1744844636536,90.3764971,131.99,131.96,11.30335886]
[1744844637035,90.3764971,131.99,131.95,11.30335886]
[1744844637237,90.3764971,131.99,131.93,1.5556]
[1744844637238,94.10335886,131.98,131.93,0.03]
[1744844637560,11.30335886,131.94,131.93,0.03]
[1744844638542,18.88256152,131.94,131.93,0.03]
[1744844638845,7.57920266,131.94,131.93,0.03]
[1744844641350,18.88256152,131.94,131.93,0.03]
[1744844642565,19.02472309,131.94,131.93,0.03]
[1744844643857,19.02472309,131.94,131.91,0.03]
[1744844643858,0.14216157,131.93,131.91,0.03]
[1744844644037,94.24552043,131.92,131.91,0.03]
[1744844644736,82.8,131.92,131.91,0.03]
[1744844644933,94.10335886,131.92,131.91,0.03]
[1744844645128,101.68371058,131.92,131.91,0.03]
[1744844645758,90.38035172,131.92,131.91,0.03]
[1744844646257,82.8,131.92,131.91,0.03]
[1744844646431,82.8,131.92,131.91,11.33335886]
[1744844647656,82.8,131.92,131.91,0.03]
[1744844648154,82.8,131.92,131.91,11.33335886]
[1744844649539,82.8,131.92,131.91,0.03]
[1744844649946,90.37943601,131.94,131.91,0.03]
[1744844650353,11.30335886,131.92,131.91,0.03]
[1744844650941,101.68279487,131.94,131.91,0.03]
[1744844651140,90.37943601,131.94,131.91,11.33335886]
[1744844652456,90.37943601,131.94,131.91,0.03]
[1744844655051,11.30335886,131.92,131.91,0.03]
[1744844657066,94.10335886,131.93,131.91,0.03]
[1744844657248,82.8,131.93,131.91,11.33335886]
[1744844657566,90.37978467,131.93,131.91,11.33335886]
[1744844658363,90.37978467,131.93,131.91,0.03]
[1744844658554,101.68314353,131.93,131.91,0.03]
[1744844659054,90.37978467,131.93,131.91,0.03]
[1744844659646,101.68314353,131.93,131.91,0.03]
[1744844660755,90.37978467,131.93,131.91,0.03]
[1744844665168,11.30335886,131.92,131.91,0.03]
[1744844665545,11.44552043,131.92,131.91,0.03]
[1744844666954,19.02587215,131.92,131.91,0.03]
[1744844668561,37.95984415,131.92,131.91,0.03]
[1744844672346,19.02587215,131.92,131.91,0.03]
[1744844677876,19.31019529,131.92,131.91,0.03]
[1744844678055,37.95984415,131.92,131.91,0.03]
[1744844684795,18.933972,131.91,131.9,0.03]
[1744844684980,30.23733086,131.91,131.9,0.03]
[1744844685874,37.81825724,131.91,131.9,0.03]
[1744844691393,56.91273478,131.91,131.85,0.03]
[1744844691684,11.30335886,131.87,131.85,0.03]
[1744844692269,11.30335886,131.86,131.85,0.03]
[1744844693579,19.02932143,131.86,131.85,0.03]
[1744844697683,18.88715986,131.86,131.85,0.03]
[1744844700695,11.30335886,131.88,131.85,0.03]
[1744844700914,11.30335886,131.86,131.85,0.03]
[1744844701082,11.44552043,131.87,131.85,0.03]
[1744844701701,94.24552043,131.87,131.85,0.03]
[1744844702499,94.10335886,131.87,131.85,0.03]
[1744844702798,82.8,131.87,131.85,0.03]
[1744844703996,94.10335886,131.87,131.85,0.03]
[1744844704194,11.30335886,131.86,131.85,0.03]
[1744844704589,18.88715986,131.86,131.85,0.03]
[1744844705507,90.38346451,131.87,131.85,0.03]
[1744844709984,82.8,131.87,131.85,0.03]
[1744844710801,90.38326105,131.87,131.85,0.03]
[1744844713199,82.8,131.87,131.85,0.03]
[1744844713505,90.38329297,131.87,131.85,0.03]
[1744844714901,11.30335886,131.86,131.85,0.03]
[1744844715082,18.88715986,131.86,131.85,0.03]
[1744844715477,90.38349164,131.87,131.85,0.03]
[1744844716403,101.6868505,131.87,131.85,0.03]
[1744844717096,90.38349164,131.87,131.85,0.03]
[1744844722210,101.6868505,131.87,131.85,0.03]
[1744844722395,11.30335886,131.86,131.85,0.03]
[1744844723301,94.10335886,131.86,131.85,0.03]
[1744844723918,19.02932143,131.86,131.85,0.03]
[1744844726016,18.88715986,131.86,131.85,0.03]
[1744844726607,7.583801,131.86,131.85,0.03]
[1744844726804,7.58292081,131.88,131.85,11.33335886]
[1744844730213,7.58292081,131.88,131.85,0.03]
[1744844732109,90.38324693,131.87,131.85,0.03]
[1744844735094,101.68660579,131.87,131.85,0.03]
[1744844735503,11.30335886,131.86,131.85,0.03]
[1744844735798,13.09862043,131.86,131.85,0.03]
[1744844736198,20.68242143,131.86,131.85,0.03]
[1744844739116,0.14216157,131.85,131.79,0.03]
[1744844739299,11.30335886,131.82,131.79,0.03]
[1744844740220,7.58610226,131.82,131.79,0.03]
[1744844740718,7.58610226,131.82,131.79,11.33335886]
[1744844740917,11.30335886,131.84,131.8,11.30335886]
[1744844742326,7.58552681,131.83,131.8,11.30335886]
[1744844747126,7.58495145,131.84,131.8,11.30335886]
[1744844747326,18.88831031,131.84,131.8,11.30335886]
[1744844748132,11.30335886,131.83,131.79,11.33335886]
[1744844748317,11.30335886,131.83,131.79,0.03]
[1744844748713,82.8,131.82,131.79,0.03]
[1744844748914,11.30335886,131.8,131.79,0.03]
[1744844749120,18.89061227,131.8,131.79,0.03]
[1744844751230,19.03277384,131.8,131.79,0.03]
[1744844751734,18.89061227,131.8,131.79,0.03]
[1744844753613,37.96674584,131.8,131.79,0.03]
[1744844754336,19.07613357,131.79,131.75,2.6198467]
[1744844754639,11.30335886,131.76,131.75,2.6198467]
[1744844755013,11.44552043,131.76,131.74,0.03]
[1744844755213,19.03565325,131.75,131.74,0.03]
[1744844756126,7.59013282,131.75,131.74,4.132812]
[1744844756329,18.89349168,131.75,131.74,4.132812]
[1744844757540,19.03565325,131.75,131.74,4.132812]
[1744844758243,37.96962525,131.75,131.74,4.132812]
[1744844759223,0.14216157,131.74,131.71,0.03]
[1744844759421,11.44552043,131.72,131.71,0.03]
[1744844759616,7.59186152,131.72,131.71,0.03]
[1744844759848,18.89522038,131.72,131.71,0.03]
[1744844761150,105.79148976,131.73,131.71,0.03]
[1744844761341,117.09484862,131.73,131.71,0.03]
[1744844761650,82.8,131.73,131.72,11.30335886]
[1744844763151,90.38918559,131.77,131.72,18.89522038]
[1744844763346,82.8,131.76,131.74,11.30335886]
[1744844763526,82.8,131.76,131.75,11.30335886]
[1744844763721,22.98853651,131.78,131.75,11.30335886]
[1744844763925,15.4,131.78,131.75,11.30335886]
[1744844764142,15.4,131.78,131.76,11.30335886]
[1744844765431,82.8,131.79,131.76,11.30335886]
[1744844766033,82.8,131.79,131.77,11.30335886]
[1744844766726,82.8,131.79,131.75,7.58965423]
[1744844766926,82.8,131.79,131.76,11.30335886]
[1744844768348,82.8,131.79,131.77,11.30335886]
[1744844768742,82.8,131.79,131.76,11.30335886]
[1744844769922,82.8,131.79,131.77,11.30335886]
[1744844770547,82.8,131.79,131.73,26.24093406]
[1744844770747,82.8,131.79,131.77,11.30335886]
[1744844770923,28.85223341,131.8,131.77,11.30335886]
[1744844771250,98.2,131.82,131.79,11.30335886]
[1744844771427,105.78627297,131.82,131.79,11.30335886]
[1744844771632,117.08963183,131.82,131.78,11.30335886]
[1744844771834,11.30335886,131.79,131.73,33.5912852]
[1744844772034,11.30335886,131.79,131.75,11.30335886]
[1744844772247,11.30335886,131.79,131.74,11.30335886]
[1744844772850,18.89176377,131.78,131.74,11.30335886]
[1744844773451,7.58840491,131.78,131.74,11.30335886]
[1744844775953,90.38840491,131.78,131.75,11.30335886]
[1744844778151,90.38840491,131.78,131.74,11.30335886]
[1744844779061,101.69176377,131.78,131.74,11.30335886]
[1744844780857,11.30335886,131.77,131.72,11.30335886]
[1744844781739,94.10335886,131.76,131.71,37.33335886]
[1744844782161,94.10335886,131.76,131.71,44.92565563]
[1744844783161,101.69343844,131.76,131.71,44.92565563]
[1744844783463,101.69343844,131.76,131.71,26.03]
[1744844783638,101.69343844,131.76,131.71,37.33335886]
[1744844783833,11.30335886,131.75,131.71,26.03]
[1744844784040,11.30335886,131.74,131.71,0.03]
[1744844784260,11.30335886,131.75,131.71,0.03]
[1744844784560,11.30335886,131.75,131.7,10.33335886]
[1744844784857,11.30335886,131.74,131.7,10.33335886]
[1744844785261,7.59070897,131.74,131.7,10.33335886]
[1744844785658,7.59070897,131.74,131.71,11.30335886]
[1744844786257,95.64825886,131.76,131.71,11.30335886]
[1744844786463,84.3449,131.76,131.73,11.30335886]
[1744844787057,91.93462598,131.76,131.69,26.24303628]
[1744844787245,90.38972598,131.76,131.73,11.30335886]
[1744844787952,90.38972598,131.76,131.71,7.59192559]
[1744844788150,90.38972598,131.76,131.73,11.30335886]
[1744844790162,12.88655886,131.74,131.68,0.03]
[1744844790462,94.10335886,131.73,131.69,11.30335886]
[1744844790855,82.8,131.73,131.69,11.30335886]
[1744844791056,94.10335886,131.73,131.69,11.30335886]
[1744844791771,7.59186152,131.72,131.68,11.33335886]
[1744844792071,7.59186152,131.72,131.69,11.30335886]
[1744844793173,18.89522038,131.72,131.68,0.03]
[1744844793356,94.10335886,131.71,131.68,0.03]
[1744844793552,82.8,131.7,131.68,0.03]
[1744844793864,90.39349556,131.7,131.68,0.03]
[1744844794042,101.69685442,131.7,131.68,0.03]
[1744844795069,95.83202043,131.69,131.68,0.03]
[1744844795493,95.68985886,131.69,131.68,0.03]
[1744844795658,84.3865,131.69,131.68,0.03]
[1744844796170,82.8,131.69,131.68,0.03]
[1744844796357,82.8,131.71,131.68,11.33335886]
[1744844796556,90.39088685,131.74,131.7,11.30335886]
[1744844796751,90.39088685,131.74,131.68,0.03]
[1744844796752,82.8,131.74,131.73,11.30335886]
[1744844797563,91.93697431,131.76,131.73,11.30335886]
[1744844797762,82.8,131.76,131.75,11.30335886]
[1744844797971,82.8,131.76,131.74,11.30335886]
[1744844798264,90.38967207,131.76,131.74,11.30335886]
[1744844798462,82.8,131.76,131.74,11.30335886]
[1744844798860,82.8,131.76,131.75,11.30335886]
[1744844801077,92.016058,131.79,131.75,11.30335886]
[1744844801249,92.016058,131.79,131.76,11.30335886]
[1744844802879,92.016058,131.79,131.75,11.30335886]
[1744844803057,103.31941686,131.79,131.75,11.30335886]
[1744844804375,103.31941686,131.79,131.74,11.30335886]
[1744844806279,82.8,131.78,131.73,11.30335886]
[1744844806479,94.10335886,131.78,131.74,11.30335886]
[1744844806770,90.38888237,131.78,131.74,11.30335886]
[1744844807179,90.38888237,131.78,131.75,11.30335886]
[1744844809277,7.58888237,131.78,131.75,11.30335886]
[1744844810471,18.89224123,131.78,131.73,11.30335886]
[1744844810664,11.30335886,131.77,131.73,11.30335886]
[1744844810862,11.30335886,131.76,131.72,26.0]
[1744844811182,94.10335886,131.77,131.72,37.30335886]
[1744844811391,94.10335886,131.77,131.73,11.30335886]
[1744844811689,11.30335886,131.76,131.72,37.30335886]
[1744844811870,0.063,131.8,131.75,37.30335886]
[1744844812064,0.063,131.8,131.78,11.30335886]
[1744844812893,0.063,131.8,131.74,46.84693544]
[1744844813095,0.063,131.8,131.77,11.30335886]
[1744844813381,0.063,131.8,131.74,1.6335]
[1744844813382,0.063,131.8,131.76,11.30335886]
[1744844814383,7.65025341,131.8,131.76,11.30335886]
[1744844814579,7.65025341,131.8,131.75,11.30335886]
[1744844814580,18.95361227,131.8,131.75,11.30335886]
[1744844815084,26.89111227,131.8,131.75,11.30335886]
[1744844815691,26.89111227,131.8,131.74,18.89399134]
[1744844815868,26.89111227,131.8,131.75,11.30335886]
[1744844817373,26.89111227,131.8,131.75,18.89336673]
[1744844818363,8.0005,131.8,131.76,11.30335886]
[1744844818565,1.5991,131.8,131.77,11.30335886]
[1744844818777,84.3991,131.8,131.77,18.89228767]
[1744844819368,84.3991,131.8,131.77,11.30335886]
[1744844820291,84.3991,131.8,131.76,18.89266115]
[1744844820501,84.3991,131.8,131.77,11.30335886]
[1744844822592,84.3991,131.8,131.77,18.89218136]
[1744844822780,84.3991,131.8,131.77,11.30335886]
[1744844823781,84.3991,131.8,131.77,18.89222609]
[1744844823983,82.863,131.8,131.78,11.30335886]
[1744844825485,0.063,131.8,131.78,11.30335886]
[1744844825687,0.063,131.8,131.79,11.30335886]
[1744844825879,0.063,131.8,131.79,18.89118798]
[1744844838775,0.063,131.85,131.82,26.0]
[1744844838974,0.063,131.85,131.84,11.30335886]
[1744844840594,0.063,131.85,131.84,18.88831031]
[1744844840990,0.063,131.85,131.84,11.30335886]
[1744844841197,0.063,131.85,131.84,63.53795917]
[1744844841787,0.063,131.85,131.84,63.96444388]
[1744844842093,0.063,131.88,131.87,26.0]
[1744844842283,0.063,131.88,131.87,37.30335886]
[1744844842883,0.063,131.88,131.87,55.95300772]
[1744844843079,0.063,131.88,131.87,101.16644316]
[1744844843279,0.063,131.91,131.88,0.42648471]
[1744844843602,0.063,131.91,131.9,11.30335886]
[1744844844185,0.063,131.91,131.9,18.88485999]
[1744844845804,0.063,131.91,131.9,63.53450885]